Workbook

Sheet ------ (hidden)

Sheet VXXXXX (hidden)

Sheet 징수실적
G1: 2018년 2월분 지방세 징수실적 보고서 (2018 회계)
R3: (단위 : 천원)
A4: 구 분 | E4: 목 표액 (예산액) | G4: 부 과 액 | I4: 징 수 액 | K4: 불납결손액 | M4: 미 수 납 액 | N4: 징 수 비 율 | Q4: 과오납 환부액
E5: 당 초 | F5: 최 종 | G5: 본월분 | H5: 누 계 | I5: 본월분 | J5: 누 계 | K5: 본월분 | L5: 누 계 | N5: 대목표 (당초) | O5: 대목표 (최종) | P5: 대부과 | Q5: 본월분 | R5: 누 계
A6: 총 괄 | B6: 합 계 | E6: =SUM(E7:E8) -> 379,350,000 | F6: 0 | G6: 26,550,746 | H6: 67,739,176 | I6: 26,209,908 | J6: =SUM(J7:J8) -> 58,538,924 | K6: 0 | L6: 0 | M6: 9,200,252 | N6: =+J6/E6*100 -> 15.4 | O6: =+J6/F6*100 ->  | P6: =+J6/H6*100 -> 86.4 | Q6: =SUM(Q7:Q8) -> 85,620 | R6: =SUM(R7:R8) -> 156,628
B7: 도 세 | E7: =E10+E45+E46 -> 124,500,000 | F7: 0 | G7: =G10+G45+G46 -> 17,957,162 | H7: 32,597,055 | I7: 17,493,329 | J7: 30,102,722 | K7: 0 | L7: 0 | M7: 2,494,333 | N7: 24.2 | P7: 92.3 | Q7: =Q10+Q45+Q46 -> 44,026 | R7: =R10+R45+R46 -> 59,521
B8: 시 군 세 | E8: =E30+E47 -> 254,850,000 | F8: =F30+F47 -> 0 | G8: 8,593,584 | H8: 35,142,121 | I8: 8,716,579 | J8: 28,436,202 | K8: 0 | L8: 0 | M8: 6,705,919 | N8: 11.2 | P8: 80.9 | Q8: =Q30+Q47 -> 41,594 | R8: =R30+R47 -> 97,107
A9: 현 년 도 | B9: 계 | E9: =SUM(E10,E30) -> 377,850,000 | F9: 0 | G9: 26,580,214 | H9: 57,794,169 | I9: 25,858,195 | J9: 56,819,175 | K9: 0 | L9: 0 | M9: 974,994 | N9: 15.0 | P9: 98.3 | Q9: =SUM(Q10,Q30) -> 42,374 | R9: =SUM(R10,R30) -> 57,870
B10: 도 세 | C10: 소 계 | E10: =SUM(E11,E12,E15,E18:E22,E23) -> 123,700,000 | F10: 0 | G10: 17,999,507 | H10: 30,449,971 | I10: 17,422,590 | J10: 29,702,788 | K10: 0 | L10: 0 | M10: 747,183 | N10: 24.0 | P10: 97.5 | Q10: =SUM(Q11,Q12,Q15,Q18:Q22,Q23) -> 27,376 | R10: =SUM(R11,R12,R15,R18:R22,R23) -> 32,003
C11: 취 득 세 | E11: 80,000,000 | G11: 15,239,106 | H11: 22,669,901 | I11: 14,639,794 | J11: 22,015,864 | M11: =H11-J11-L11 -> 654,037 | N11: 27.5 | P11: 97.1 | Q11: 18,632 | R11: 21,724
C12: 등 록 면허세 | D12: 소 계 | E12: =SUM(E13:E14) -> 7,800,000 | F12: 0 | G12: 498,667 | H12: 1,876,601 | I12: 543,281 | J12: =SUM(J13:J14) -> 1,812,253 | K12: 0 | L12: 0 | M12: 64,348 | N12: 23.2 | P12: 96.6 | Q12: =SUM(Q13:Q14) -> 3,851 | R12: =SUM(R13:R14) -> 5,056
D13: 등록분 | E13: 6,660,000 | G13: 475,774 | H13: 962,415 | I13: 475,762 | J13: 962,381 | M13: =H13-J13-L13 -> 34 | N13: 14.5 | P13: 100.0 | Q13: 3,468 | R13: 4,486
D14: 면허분 | E14: 1,140,000 | G14: 22,893 | H14: 914,186 | I14: 67,519 | J14: 849,872 | M14: =H14-J14-L14 -> 64,314 | N14: =+J14/E14*100 -> 74.6 | O14: =+J14/F14*100 ->  | P14: =+J14/H14*100 -> 93.0 | Q14: 383 | R14: 570
C15: 지 역 자 원 시설세 | D15: 소 계 | E15: =SUM(E16:E17) -> 11,500,000 | F15: 0 | G15: 312,808 | H15: 609,955 | I15: 313,534 | J15: 609,050 | K15: 0 | L15: 0 | M15: 905 | N15: 5.3 | P15: 99.9 | Q15: =SUM(Q16:Q17) -> 0 | R15: =SUM(R16:R17) -> 0
D16: 특정자원 | E16: 2,544,000 | G16: 312,808 | H16: 609,955 | I16: 313,534 | J16: 609,050 | M16: =H16-J16-L16 -> 905 | N16: 23.9 | P16: 99.9
D17: 특정부동산 | E17: 8,956,000 | M17: 0 | N17: 0.0
C18: 지방소비세 | M18: 0
C19: 등 록 세 | G19: 6,099 | H19: 10,349 | I19: 6,099 | J19: 10,349 | M19: 0 | P19: 100.0
C20: 면 허 세 | M20: 0
C21: 공동시설세 | M21: 0
C22: 지역개발세 | M22: 0
C23: 지 방 교 육 세 | D23: 소 계 | E23: =SUM(E24:E29) -> 24,400,000 | F23: =SUM(F24:F29) -> 0 | G23: 1,942,827 | H23: 5,283,165 | I23: 1,919,882 | J23: 5,255,272 | K23: 0 | L23: 0 | M23: 27,893 | N23: 21.5 | P23: 99.5 | Q23: =SUM(Q24:Q29) -> 4,893 | R23: =SUM(R24:R29) -> 5,223
D24: 취득세분 | E24: 2,783,000 | G24: 1,256,293 | H24: 1,663,102 | I24: 1,235,735 | J24: 1,638,570 | M24: =H24-J24-L24 -> 24,532 | N24: 58.9 | P24: 98.5 | Q24: 229 | R24: 243
D25: 등록면허세분 | E25: 2,027,000 | G25: 79,427 | H25: 160,275 | I25: 79,424 | J25: 160,271 | M25: 4 | N25: 7.9 | P25: 100.0 | Q25: 694 | R25: 897
D26: 주민세분 | E26: 95,000 | G26: 0 | H26: 70 | I26: 0 | J26: 70 | M26: 0 | N26: 0.1 | P26: 100.0
D27: 재산세분 | E27: 3,400,000 | G27: 293 | H27: 143,402 | I27: 290 | J27: 143,393 | M27: 9 | N27: 4.2 | P27: 100.0
D28: 자동차세분 | E28: 6,572,000 | G28: 1,737 | H28: 2,050,209 | I28: -644 | J28: 2,046,861 | M28: 3,348 | N28: 31.1 | P28: 99.8 | Q28: 3,970 | R28: 4,083
D29: 담배소비세분 | E29: 9,523,000 | G29: 605,077 | H29: 1,266,107 | I29: 605,077 | J29: 1,266,107 | M29: 0 | N29: 13.3 | P29: 100.0
B30: 시 군 세 | C30: 소 계 | E30: =SUM(E31,E32,E33,E36:E43) -> 254,150,000 | F30: =SUM(F31,F32,F33,F36:F43) -> 0 | G30: 8,580,707 | H30: =SUM(H31,H32,H33,H36:H43) -> 27,344,198 | I30: 8,435,605 | J30: 27,116,387 | K30: 0 | L30: 0 | M30: 227,811 | N30: 10.7 | P30: 99.2 | Q30: =SUM(Q31,Q32,Q33,Q36:Q43) -> 14,998 | R30: =SUM(R31,R32,R33,R36:R43) -> 25,867
C31: 주 민 세 | E31: 13,412,000 | G31: 875,854 | H31: 2,004,508 | I31: 873,042 | J31: 1,998,332 | M31: =H31-J31-L31 -> 6,176 | N31: 14.9 | P31: 99.7
C32: 재 산 세 | E32: 39,000,000 | G32: 1,466 | H32: 717,013 | I32: 1,453 | J32: 716,967 | M32: =H32-J32-L32 -> 46 | N32: 1.8 | P32: 100.0
C33: 자동 차세 | D33: 소 계 | E33: =SUM(E34:E35) -> 58,038,000 | F33: =SUM(F34:F35) -> 0 | G33: 3,234,029 | H33: 13,252,178 | I33: 3,225,880 | J33: =SUM(J34:J35) -> 13,240,778 | K33: 0 | L33: 0 | M33: 11,400 | N33: 22.8 | P33: 99.9 | Q33: =SUM(Q34:Q35) -> 13,664 | R33: =SUM(R34:R35) -> 14,341
D34: 자동차분 | E34: 21,102,000 | G34: 5,889 | H34: 7,018,605 | I34: -2,260 | J34: 7,007,205 | M34: =H34-J34-L34 -> 11,400 | N34: 33.2 | P34: 99.8 | Q34: 13,664 | R34: 14,341
D35: 주 행 분 | E35: 36,936,000 | G35: 3,228,140 | H35: 6,233,573 | I35: 3,228,140 | J35: 6,233,573 | M35: 0 | N35: 16.9 | P35: 100.0
C36: 담배소비세 | E36: 19,000,000 | G36: 1,375,489 | H36: 2,878,174 | I36: 1,375,489 | J36: 2,878,174 | M36: 0 | N36: 15.1 | P36: 100.0
C37: 지방소득세 | E37: 124,700,000 | G37: 3,093,869 | H37: 8,492,325 | I37: 2,959,741 | J37: 8,282,136 | M37: 210,189 | N37: 6.6 | P37: 97.5 | Q37: 1,334 | R37: 11,526
C38: 주 행 세 | M38: 0
C39: 농업소득세 | M39: 0
C40: 도 축 세 | M40: 0
C41: 종합토지세 | M41: 0
C42: 도시계획세 | M42: 0
C43: 사 업 소세 | M43: 0
A44: 과 년 도 | B44: 계 | E44: =SUM(E45:E47) -> 1,500,000 | F44: =SUM(F45:F47) -> 0 | G44: =SUM(G45:G47) -> -29,468 | H44: 9,945,007 | I44: 351,713 | J44: 1,719,749 | K44: 0 | L44: 0 | M44: 8,225,258 | N44: 114.6 | P44: 17.3 | Q44: =SUM(Q45:Q47) -> 43,246 | R44: =SUM(R45:R47) -> 98,758
B45: 도 세 | E45: 363,000 | G45: -39,828 | H45: 889,709 | I45: -98 | J45: 58,859 | M45: =H45-J45-L45 -> 830,850 | N45: 16.2 | P45: 6.6 | Q45: 14,763 | R45: 22,826
B46: 지방교육세 | E46: 437,000 | G46: -2,517 | H46: 1,257,375 | I46: 70,837 | J46: 341,075 | M46: =H46-J46-L46 -> 916,300 | N46: 78.0 | P46: 27.1 | Q46: 1,887 | R46: 4,692
B47: 시 군 세 | E47: 700,000 | G47: 12,877 | H47: 7,797,923 | I47: 280,974 | J47: 1,319,815 | M47: =H47-J47-L47 -> 6,478,108 | N47: 188.5 | P47: 16.9 | Q47: 26,596 | R47: 71,240
